[Event "Titled Tuesday Blitz October 25 Late 2022"]
[White "Boskovic, Drasko"]
[Black "Papp, Petra"]
[WhiteFideId "927368"]
[BlackFideId "739049"]
[WhiteElo "2388"]
[BlackElo "2259"]
[Result "1-0"]
[Round "05"]
[TimeControl "180+1"]
[Date "2022.10.26"]
[WhiteClock "0:00:06"]
[BlackClock "0:00:01"]

1. e4 {[%clk 0:02:59]}  e5 {[%clk 0:02:18]} 2. Nf3 {[%clk 0:02:17]}  Nf6 {[%clk 0:02:17]} 3. d3 {[%clk 0:02:17]}  Nc6 {[%clk 0:02:16]} 4. g3 {[%clk 0:02:18]}  d5 {[%clk 0:02:16]} 5. exd5 {[%clk 0:02:17]}  Nxd5 {[%clk 0:02:17]} 6. Bg2 {[%clk 0:02:18]}  Bc5 {[%clk 0:02:17]} 7. O-O {[%clk 0:02:18]}  O-O {[%clk 0:02:17]} 8. Nc3 {[%clk 0:02:19]}  Nxc3 {[%clk 0:02:15]} 9. bxc3 {[%clk 0:02:20]}  Bg4 {[%clk 0:02:13]} 10. h3 {[%clk 0:02:20]}  Bh5 {[%clk 0:02:13]} 11. Rb1 {[%clk 0:02:19]}  Bb6 {[%clk 0:02:12]} 12. Qe1 {[%clk 0:02:17]}  Qf6 {[%clk 0:02:05]} 13. Nd2 {[%clk 0:02:16]}  Rfe8 {[%clk 0:02:01]} 14. Nc4 {[%clk 0:02:12]}  Bf3 {[%clk 0:01:53]} 15. Rb5 {[%clk 0:02:03]}  Bxg2 {[%clk 0:01:10]} 16. Kxg2 {[%clk 0:02:03]}  Nd4 {[%clk 0:01:11]} 17. cxd4 {[%clk 0:00:22]}  Qc6+ {[%clk 0:01:07]} 18. Qe4 {[%clk 0:00:15]}  Qxb5 {[%clk 0:01:06]} 19. dxe5 {[%clk 0:00:16]}  Qa4 {[%clk 0:00:35]} 20. Qe2 {[%clk 0:00:11]}  Bd4 {[%clk 0:00:29]} 21. f4 {[%clk 0:00:10]}  f6 {[%clk 0:00:20]} 22. Bb2 {[%clk 0:00:05]}  Bxb2 {[%clk 0:00:19]} 23. Nxb2 {[%clk 0:00:06]}  Qc6+ {[%clk 0:00:16]} 24. Kh2 {[%clk 0:00:07]}  b5 {[%clk 0:00:13]} 25. d4 {[%clk 0:00:07]}  Qd5 {[%clk 0:00:11]} 26. c3 {[%clk 0:00:06]}  a5 {[%clk 0:00:10]} 27. Nd3 {[%clk 0:00:07]}  b4 {[%clk 0:00:09]} 28. cxb4 {[%clk 0:00:04]}  axb4 {[%clk 0:00:09]} 29. Nxb4 {[%clk 0:00:05]}  Qxd4 {[%clk 0:00:09]} 30. Rb1 {[%clk 0:00:04]}  Ra3 {[%clk 0:00:06]} 31. e6 {[%clk 0:00:03]}  Qc3 {[%clk 0:00:04]} 32. Qf2 {[%clk 0:00:02]}  Rb8 {[%clk 0:00:03]} 33. Nd5 {[%clk 0:00:02]}  Rxb1 {[%clk 0:00:01]} 34. Nxc3 {[%clk 0:00:03]}  Rxc3 {[%clk 0:00:02]} 35. e7 {[%clk 0:00:03]}  Kf7 {[%clk 0:00:02]} 36. Qe2 {[%clk 0:00:03]}  Ke8 {[%clk 0:00:02]} 37. h4 {[%clk 0:00:04]}  Rbc1 {[%clk 0:00:02]} 38. Kh3 {[%clk 0:00:05]}  R1c2 {[%clk 0:00:02]} 39. Qe6 {[%clk 0:00:05]}  Rc6 {[%clk 0:00:01]} 40. Qg8+ {[%clk 0:00:06]} 1-0


[Site "https://www.chess.com"]

[Event "Titled Tuesday Blitz October 25 Late 2022"]
[White "Burke, Paul"]
[Black "Cortes Orihuela, Javier"]
[WhiteFideId "2605767"]
[BlackFideId "3414329"]
[WhiteElo "1846"]
[BlackElo "2080"]
[Result "0-1"]
[Round "05"]
[TimeControl "180+1"]
[Date "2022.10.26"]
[WhiteClock "0:00:30"]
[BlackClock "0:00:17"]

1. e4 {[%clk 0:03:00]}  e5 {[%clk 0:02:59]} 2. Nf3 {[%clk 0:03:00]}  Nc6 {[%clk 0:03:00]} 3. Bc4 {[%clk 0:03:00]}  Nf6 {[%clk 0:02:59]} 4. d4 {[%clk 0:02:59]}  exd4 {[%clk 0:02:55]} 5. O-O {[%clk 0:02:59]}  d6 {[%clk 0:02:48]} 6. c3 {[%clk 0:02:58]}  Be7 {[%clk 0:02:44]} 7. cxd4 {[%clk 0:02:56]}  O-O {[%clk 0:02:44]} 8. Nc3 {[%clk 0:02:53]}  Bg4 {[%clk 0:02:43]} 9. Be3 {[%clk 0:02:53]}  Na5 {[%clk 0:02:38]} 10. Be2 {[%clk 0:02:50]}  c5 {[%clk 0:02:36]} 11. e5 {[%clk 0:02:27]}  dxe5 {[%clk 0:02:24]} 12. dxe5 {[%clk 0:02:26]}  Nd7 {[%clk 0:02:21]} 13. Qd5 {[%clk 0:01:53]}  Nc6 {[%clk 0:02:04]} 14. Bf4 {[%clk 0:01:34]}  Nb6 {[%clk 0:01:33]} 15. Qxd8 {[%clk 0:01:30]}  Rfxd8 {[%clk 0:01:24]} 16. Rad1 {[%clk 0:01:27]}  Be6 {[%clk 0:01:04]} 17. h3 {[%clk 0:01:21]}  Nc4 {[%clk 0:00:55]} 18. Bxc4 {[%clk 0:01:19]}  Bxc4 {[%clk 0:00:56]} 19. b3 {[%clk 0:01:05]}  Bxf1 {[%clk 0:00:55]} 20. Rxf1 {[%clk 0:01:04]}  Nd4 {[%clk 0:00:52]} 21. Nxd4 {[%clk 0:01:03]}  cxd4 {[%clk 0:00:53]} 22. Ne4 {[%clk 0:00:57]}  Rac8 {[%clk 0:00:48]} 23. Rd1 {[%clk 0:00:57]}  f6 {[%clk 0:00:37]} 24. exf6 {[%clk 0:00:55]}  Bxf6 {[%clk 0:00:35]} 25. Nxf6+ {[%clk 0:00:53]}  gxf6 {[%clk 0:00:35]} 26. Rd2 {[%clk 0:00:53]}  Kf7 {[%clk 0:00:34]} 27. Kh2 {[%clk 0:00:51]}  Rd7 {[%clk 0:00:32]} 28. Kg3 {[%clk 0:00:43]}  d3 {[%clk 0:00:32]} 29. Kf3 {[%clk 0:00:41]}  Rc2 {[%clk 0:00:31]} 30. g3 {[%clk 0:00:40]}  Rxd2 {[%clk 0:00:31]} 31. Bxd2 {[%clk 0:00:40]}  Ke6 {[%clk 0:00:31]} 32. Ke3 {[%clk 0:00:39]}  h5 {[%clk 0:00:27]} 33. f4 {[%clk 0:00:38]}  f5 {[%clk 0:00:26]} 34. Kf3 {[%clk 0:00:35]}  Kd5 {[%clk 0:00:24]} 35. Ke3 {[%clk 0:00:35]}  Rg7 {[%clk 0:00:21]} 36. Be1 {[%clk 0:00:33]}  Re7+ {[%clk 0:00:21]} 37. Kd2 {[%clk 0:00:33]}  Re2+ {[%clk 0:00:20]} 38. Kd1 {[%clk 0:00:31]}  Ke4 {[%clk 0:00:20]} 39. Bc3 {[%clk 0:00:30]}  Rxa2 {[%clk 0:00:17]} 0-1


[Site "https://www.chess.com"]

[Event "Titled Tuesday Blitz October 25 Late 2022"]
[White "Caruana, Fabiano"]
[Black "Abdyzhapar, Asylbek"]
[WhiteFideId "2020009"]
[BlackFideId "13800337"]
[WhiteElo "2847"]
[BlackElo "2323"]
[Result "1-0"]
[Round "05"]
[TimeControl "180+1"]
[Date "2022.10.26"]
[WhiteClock "0:00:12"]
[BlackClock "0:00:02"]

1. e4 {[%clk 0:03:00]}  c6 {[%clk 0:03:00]} 2. d4 {[%clk 0:02:57]}  d5 {[%clk 0:03:00]} 3. Nd2 {[%clk 0:02:57]}  dxe4 {[%clk 0:02:59]} 4. Nxe4 {[%clk 0:02:58]}  Nf6 {[%clk 0:02:59]} 5. Ng5 {[%clk 0:02:57]}  h6 {[%clk 0:02:51]} 6. N5f3 {[%clk 0:02:58]}  Bf5 {[%clk 0:02:50]} 7. Bd3 {[%clk 0:02:57]}  Bxd3 {[%clk 0:02:50]} 8. Qxd3 {[%clk 0:02:57]}  e6 {[%clk 0:02:50]} 9. Ne2 {[%clk 0:02:58]}  Nbd7 {[%clk 0:02:48]} 10. O-O {[%clk 0:02:56]}  Be7 {[%clk 0:02:47]} 11. c4 {[%clk 0:02:56]}  O-O {[%clk 0:02:47]} 12. Nc3 {[%clk 0:02:55]}  Qc7 {[%clk 0:02:43]} 13. Qe2 {[%clk 0:02:52]}  Rfe8 {[%clk 0:02:42]} 14. Be3 {[%clk 0:02:50]}  Rad8 {[%clk 0:02:40]} 15. h3 {[%clk 0:02:49]}  e5 {[%clk 0:02:40]} 16. d5 {[%clk 0:02:47]}  e4 {[%clk 0:02:32]} 17. Nd4 {[%clk 0:02:48]}  Ne5 {[%clk 0:02:28]} 18. Nf5 {[%clk 0:02:42]}  Bb4 {[%clk 0:02:14]} 19. Rad1 {[%clk 0:02:04]}  Bxc3 {[%clk 0:01:55]} 20. d6 {[%clk 0:02:02]}  Qd7 {[%clk 0:01:43]} 21. Ne7+ {[%clk 0:02:01]}  Kh8 {[%clk 0:01:23]} 22. bxc3 {[%clk 0:02:01]}  b6 {[%clk 0:01:08]} 23. c5 {[%clk 0:01:25]}  Qe6 {[%clk 0:01:08]} 24. Bd4 {[%clk 0:01:22]}  Nd3 {[%clk 0:00:32]} 25. Nxc6 {[%clk 0:01:15]}  Rc8 {[%clk 0:00:31]} 26. Nxa7 {[%clk 0:01:10]}  Ra8 {[%clk 0:00:29]} 27. cxb6 {[%clk 0:01:10]}  Nf4 {[%clk 0:00:25]} 28. Qd2 {[%clk 0:00:59]}  N6h5 {[%clk 0:00:23]} 29. d7 {[%clk 0:00:52]}  Red8 {[%clk 0:00:20]} 30. Be3 {[%clk 0:00:52]}  Qf5 {[%clk 0:00:16]} 31. g4 {[%clk 0:00:46]}  Nxh3+ {[%clk 0:00:15]} 32. Kh2 {[%clk 0:00:46]}  Qxg4 {[%clk 0:00:15]} 33. Rg1 {[%clk 0:00:20]}  Nxg1 {[%clk 0:00:14]} 34. Rxg1 {[%clk 0:00:20]}  Qh4+ {[%clk 0:00:14]} 35. Kg2 {[%clk 0:00:20]}  Nf6 {[%clk 0:00:14]} 36. Qd6 {[%clk 0:00:13]}  Rxd7 {[%clk 0:00:12]} 37. Qg3 {[%clk 0:00:14]}  Qh5 {[%clk 0:00:11]} 38. Rh1 {[%clk 0:00:12]}  Qf5 {[%clk 0:00:11]} 39. Nc6 {[%clk 0:00:11]}  Rxa2 {[%clk 0:00:10]} 40. Nd4 {[%clk 0:00:10]}  Qg6 {[%clk 0:00:09]} 41. Qxg6 {[%clk 0:00:10]}  fxg6 {[%clk 0:00:09]} 42. Rb1 {[%clk 0:00:11]}  Rb7 {[%clk 0:00:09]} 43. c4 {[%clk 0:00:11]}  Nd7 {[%clk 0:00:09]} 44. Ne6 {[%clk 0:00:10]}  Rc2 {[%clk 0:00:09]} 45. c5 {[%clk 0:00:11]}  Ne5 {[%clk 0:00:08]} 46. Nd8 {[%clk 0:00:10]}  Rb8 {[%clk 0:00:08]} 47. b7 {[%clk 0:00:10]}  Rxd8 {[%clk 0:00:08]} 48. b8=Q {[%clk 0:00:10]}  Rxb8 {[%clk 0:00:08]} 49. Rxb8+ {[%clk 0:00:11]}  Kh7 {[%clk 0:00:09]} 50. Kg3 {[%clk 0:00:11]}  g5 {[%clk 0:00:09]} 51. Re8 {[%clk 0:00:10]}  Nd3 {[%clk 0:00:09]} 52. Re7 {[%clk 0:00:08]}  Kg6 {[%clk 0:00:07]} 53. Bd4 {[%clk 0:00:08]}  Kf5 {[%clk 0:00:07]} 54. Rxg7 {[%clk 0:00:08]}  Nxc5 {[%clk 0:00:07]} 55. Rc7 {[%clk 0:00:08]}  Rd2 {[%clk 0:00:06]} 56. Bxc5 {[%clk 0:00:08]}  Rd3+ {[%clk 0:00:06]} 57. Be3 {[%clk 0:00:08]}  Rd5 {[%clk 0:00:04]} 58. Rc6 {[%clk 0:00:07]}  h5 {[%clk 0:00:04]} 59. Kg2 {[%clk 0:00:08]}  h4 {[%clk 0:00:05]} 60. Rc8 {[%clk 0:00:08]}  Kg4 {[%clk 0:00:05]} 61. Re8 {[%clk 0:00:08]}  Kf5 {[%clk 0:00:05]} 62. Re7 {[%clk 0:00:09]}  Rb5 {[%clk 0:00:03]} 63. Kh3 {[%clk 0:00:09]}  Rd5 {[%clk 0:00:03]} 64. Re8 {[%clk 0:00:09]}  Rb5 {[%clk 0:00:02]} 65. Rg8 {[%clk 0:00:10]}  Kf6 {[%clk 0:00:02]} 66. Kg4 {[%clk 0:00:10]}  Re5 {[%clk 0:00:02]} 67. Rxg5 {[%clk 0:00:10]}  Rxg5+ {[%clk 0:00:02]} 68. Bxg5+ {[%clk 0:00:11]}  Ke5 {[%clk 0:00:02]} 69. Kxh4 {[%clk 0:00:11]}  Kf5 {[%clk 0:00:02]} 70. Be3 {[%clk 0:00:12]} 1-0


[Site "https://www.chess.com"]

[Event "Titled Tuesday Blitz October 25 Late 2022"]
[White "Curtis, John"]
[Black "chess50years"]
[WhiteFideId "3200256"]
[WhiteElo "2203"]
[BlackElo "1531"]
[Result "1-0"]
[Round "05"]
[TimeControl "180+1"]
[Date "2022.10.26"]
[WhiteClock "0:01:44"]
[BlackClock "0:01:06"]

1. e4 {[%clk 0:03:00]}  c6 {[%clk 0:02:54]} 2. d3 {[%clk 0:02:59]}  e5 {[%clk 0:02:48]} 3. Nd2 {[%clk 0:02:59]}  Bc5 {[%clk 0:02:48]} 4. c3 {[%clk 0:02:53]}  d6 {[%clk 0:02:46]} 5. b4 {[%clk 0:02:47]}  Bb6 {[%clk 0:02:45]} 6. Nc4 {[%clk 0:02:46]}  Bc7 {[%clk 0:02:44]} 7. f4 {[%clk 0:02:46]}  b5 {[%clk 0:02:35]} 8. Nb2 {[%clk 0:02:44]}  Nf6 {[%clk 0:02:34]} 9. Nf3 {[%clk 0:02:40]}  Nbd7 {[%clk 0:02:24]} 10. a4 {[%clk 0:02:38]}  bxa4 {[%clk 0:02:16]} 11. Qxa4 {[%clk 0:02:34]}  Bb7 {[%clk 0:02:12]} 12. fxe5 {[%clk 0:02:29]}  dxe5 {[%clk 0:02:05]} 13. Nc4 {[%clk 0:02:28]}  O-O {[%clk 0:02:00]} 14. Be2 {[%clk 0:02:28]}  Nb6 {[%clk 0:01:51]} 15. Qa2 {[%clk 0:02:22]}  Nxc4 {[%clk 0:01:46]} 16. Qxc4 {[%clk 0:02:22]}  Qe7 {[%clk 0:01:43]} 17. Be3 {[%clk 0:02:14]}  Bb6 {[%clk 0:01:43]} 18. Bc5 {[%clk 0:02:11]}  Bxc5 {[%clk 0:01:41]} 19. Qxc5 {[%clk 0:02:11]}  Qxc5 {[%clk 0:01:41]} 20. bxc5 {[%clk 0:02:11]}  Nd7 {[%clk 0:01:40]} 21. d4 {[%clk 0:02:12]}  exd4 {[%clk 0:01:38]} 22. cxd4 {[%clk 0:02:11]}  Nf6 {[%clk 0:01:28]} 23. e5 {[%clk 0:01:58]}  Nd5 {[%clk 0:01:27]} 24. Kf2 {[%clk 0:01:56]}  a5 {[%clk 0:01:24]} 25. Bc4 {[%clk 0:01:52]}  Rfd8 {[%clk 0:01:16]} 26. Rhb1 {[%clk 0:01:50]}  Ba6 {[%clk 0:01:12]} 27. Bxd5 {[%clk 0:01:49]}  Rxd5 {[%clk 0:01:11]} 28. Rxa5 {[%clk 0:01:48]}  Bb5 {[%clk 0:01:06]} 29. Rxa8+ {[%clk 0:01:44]} 1-0


[Site "https://www.chess.com"]

[Event "Titled Tuesday Blitz October 25 Late 2022"]
[White "Czernek, Tymon"]
[Black "Mendez Fortes, Eduardo Jesus"]
[WhiteFideId "1199510"]
[BlackFideId "3502376"]
[WhiteElo "2240"]
[BlackElo "2307"]
[Result "0-1"]
[Round "05"]
[TimeControl "180+1"]
[Date "2022.10.26"]
[WhiteClock "0:00:23"]
[BlackClock "0:00:13"]

1. e4 {[%clk 0:02:50]}  e5 {[%clk 0:02:57]} 2. Nf3 {[%clk 0:02:50]}  Nc6 {[%clk 0:02:57]} 3. Bc4 {[%clk 0:02:50]}  Nf6 {[%clk 0:02:58]} 4. d3 {[%clk 0:02:50]}  Bc5 {[%clk 0:02:58]} 5. O-O {[%clk 0:02:51]}  d6 {[%clk 0:02:58]} 6. c3 {[%clk 0:02:51]}  Bb6 {[%clk 0:02:58]} 7. Bb3 {[%clk 0:02:51]}  O-O {[%clk 0:02:59]} 8. h3 {[%clk 0:02:52]}  Ne7 {[%clk 0:02:59]} 9. Re1 {[%clk 0:02:52]}  Ng6 {[%clk 0:02:59]} 10. Nbd2 {[%clk 0:02:52]}  c6 {[%clk 0:02:59]} 11. Nf1 {[%clk 0:02:52]}  Re8 {[%clk 0:02:59]} 12. Be3 {[%clk 0:02:52]}  Bc7 {[%clk 0:02:58]} 13. Ng3 {[%clk 0:02:51]}  d5 {[%clk 0:02:58]} 14. Qc1 {[%clk 0:02:43]}  Be6 {[%clk 0:02:55]} 15. Bg5 {[%clk 0:02:42]}  h6 {[%clk 0:02:47]} 16. Be3 {[%clk 0:01:59]}  Bd6 {[%clk 0:02:36]} 17. Qc2 {[%clk 0:01:49]}  c5 {[%clk 0:02:32]} 18. exd5 {[%clk 0:01:48]}  Nxd5 {[%clk 0:02:32]} 19. Ne4 {[%clk 0:01:41]}  b6 {[%clk 0:02:23]} 20. Nxd6 {[%clk 0:01:40]}  Qxd6 {[%clk 0:02:22]} 21. Rad1 {[%clk 0:01:38]}  f5 {[%clk 0:02:13]} 22. d4 {[%clk 0:01:36]}  Nxe3 {[%clk 0:02:02]} 23. Rxe3 {[%clk 0:01:29]}  cxd4 {[%clk 0:01:59]} 24. cxd4 {[%clk 0:01:29]}  e4 {[%clk 0:01:57]} 25. d5 {[%clk 0:01:18]}  Bd7 {[%clk 0:01:51]} 26. Nd4 {[%clk 0:01:15]}  Rac8 {[%clk 0:01:44]} 27. Qe2 {[%clk 0:01:14]}  Nf4 {[%clk 0:01:41]} 28. Qd2 {[%clk 0:01:08]}  Kh8 {[%clk 0:01:35]} 29. Rg3 {[%clk 0:00:55]}  g5 {[%clk 0:01:28]} 30. h4 {[%clk 0:00:52]}  Qf6 {[%clk 0:01:15]} 31. hxg5 {[%clk 0:00:52]}  hxg5 {[%clk 0:01:16]} 32. Ne6 {[%clk 0:00:46]}  Bxe6 {[%clk 0:01:11]} 33. dxe6 {[%clk 0:00:47]}  Red8 {[%clk 0:01:07]} 34. Qe3 {[%clk 0:00:34]}  Rxd1+ {[%clk 0:00:48]} 35. Bxd1 {[%clk 0:00:35]}  Rd8 {[%clk 0:00:30]} 36. Bc2 {[%clk 0:00:26]}  Rg8 {[%clk 0:00:15]} 37. Bb3 {[%clk 0:00:25]}  Rg7 {[%clk 0:00:15]} 38. Qc3 {[%clk 0:00:24]}  Ne2+ {[%clk 0:00:14]} 39. Kf1 {[%clk 0:00:24]}  Nxc3 {[%clk 0:00:15]} 40. Rxc3 {[%clk 0:00:25]}  Re7 {[%clk 0:00:14]} 41. Rc8+ {[%clk 0:00:25]}  Kg7 {[%clk 0:00:14]} 42. g3 {[%clk 0:00:25]}  f4 {[%clk 0:00:15]} 43. Kg2 {[%clk 0:00:24]}  f3+ {[%clk 0:00:15]} 44. Kf1 {[%clk 0:00:23]}  Qxb2 {[%clk 0:00:13]} 0-1


[Site "https://www.chess.com"]

[Event "Titled Tuesday Blitz October 25 Late 2022"]
[White "Dauw, Sterre"]
[Black "Boyer, Mahel"]
[WhiteFideId "248886"]
[BlackFideId "45102422"]
[WhiteElo "2187"]
[BlackElo "2454"]
[Result "1-0"]
[Round "05"]
[TimeControl "180+1"]
[Date "2022.10.26"]
[WhiteClock "0:00:19"]
[BlackClock "0:00:02"]

1. e4 {[%clk 0:03:00]}  e5 {[%clk 0:02:50]} 2. Nc3 {[%clk 0:02:58]}  Nc6 {[%clk 0:02:50]} 3. Bc4 {[%clk 0:02:58]}  g6 {[%clk 0:02:44]} 4. Nf3 {[%clk 0:02:55]}  Bg7 {[%clk 0:02:37]} 5. h4 {[%clk 0:02:51]}  h6 {[%clk 0:02:35]} 6. h5 {[%clk 0:02:49]}  g5 {[%clk 0:02:35]} 7. d3 {[%clk 0:02:47]}  Nge7 {[%clk 0:02:27]} 8. g4 {[%clk 0:02:44]}  Na5 {[%clk 0:02:13]} 9. Bb3 {[%clk 0:02:32]}  Nxb3 {[%clk 0:02:01]} 10. axb3 {[%clk 0:02:33]}  d5 {[%clk 0:02:01]} 11. Nh2 {[%clk 0:02:30]}  d4 {[%clk 0:01:26]} 12. Ne2 {[%clk 0:02:27]}  Nc6 {[%clk 0:01:18]} 13. f3 {[%clk 0:02:17]}  a5 {[%clk 0:01:09]} 14. Nf1 {[%clk 0:02:14]}  Be6 {[%clk 0:01:05]} 15. Neg3 {[%clk 0:02:08]}  Bf8 {[%clk 0:01:04]} 16. Kf2 {[%clk 0:02:04]}  b5 {[%clk 0:00:53]} 17. Nf5 {[%clk 0:02:03]}  Bc5 {[%clk 0:00:25]} 18. N1g3 {[%clk 0:01:58]}  Kf8 {[%clk 0:00:17]} 19. Kg2 {[%clk 0:01:55]}  f6 {[%clk 0:00:13]} 20. Qe2 {[%clk 0:01:33]}  Kf7 {[%clk 0:00:11]} 21. Bd2 {[%clk 0:01:27]}  a4 {[%clk 0:00:08]} 22. bxa4 {[%clk 0:01:22]}  bxa4 {[%clk 0:00:07]} 23. Raf1 {[%clk 0:01:19]}  Qd7 {[%clk 0:00:05]} 24. Rf2 {[%clk 0:01:18]}  Rab8 {[%clk 0:00:05]} 25. Bc1 {[%clk 0:01:18]}  Nb4 {[%clk 0:00:03]} 26. Rhf1 {[%clk 0:01:16]}  Rb7 {[%clk 0:00:03]} 27. f4 {[%clk 0:01:15]}  gxf4 {[%clk 0:00:03]} 28. Bxf4 {[%clk 0:01:16]}  exf4 {[%clk 0:00:04]} 29. Rxf4 {[%clk 0:01:16]}  Rb6 {[%clk 0:00:04]} 30. Nh4 {[%clk 0:00:57]}  Ke8 {[%clk 0:00:03]} 31. Ng6 {[%clk 0:00:54]}  Rg8 {[%clk 0:00:03]} 32. Nf5 {[%clk 0:00:46]}  Kd8 {[%clk 0:00:03]} 33. Nxh6 {[%clk 0:00:45]}  Re8 {[%clk 0:00:02]} 34. Rxf6 {[%clk 0:00:43]}  Nd5 {[%clk 0:00:02]} 35. R6f2 {[%clk 0:00:19]}  Ne3+ {[%clk 0:00:02]} 36. Kh3 {[%clk 0:00:18]}  Nxf1 {[%clk 0:00:03]} 37. Rxf1 {[%clk 0:00:18]}  Rxb2 {[%clk 0:00:03]} 38. Kh4 {[%clk 0:00:18]}  Be7+ {[%clk 0:00:03]} 39. g5 {[%clk 0:00:18]}  a3 {[%clk 0:00:03]} 40. Nf5 {[%clk 0:00:17]}  Bxf5 {[%clk 0:00:03]} 41. exf5 {[%clk 0:00:15]}  Bxg5+ {[%clk 0:00:03]} 42. Kxg5 {[%clk 0:00:16]}  Rxe2 {[%clk 0:00:03]} 43. h6 {[%clk 0:00:17]}  Rg2+ {[%clk 0:00:03]} 44. Kf6 {[%clk 0:00:17]}  Rbxc2 {[%clk 0:00:04]} 45. h7 {[%clk 0:00:16]}  Qd6+ {[%clk 0:00:05]} 46. Kg7 {[%clk 0:00:16]}  Qd7+ {[%clk 0:00:05]} 47. Kg8 {[%clk 0:00:16]}  Qe8+ {[%clk 0:00:05]} 48. Kg7 {[%clk 0:00:16]}  Rh2 {[%clk 0:00:03]} 49. f6 {[%clk 0:00:16]}  Rcg2 {[%clk 0:00:02]} 50. f7 {[%clk 0:00:17]}  Rxg6+ {[%clk 0:00:03]} 51. Kxg6 {[%clk 0:00:17]}  Qe6+ {[%clk 0:00:04]} 52. Kg7 {[%clk 0:00:17]}  Qg4+ {[%clk 0:00:04]} 53. Kh8 {[%clk 0:00:17]}  Rh6 {[%clk 0:00:04]} 54. f8=Q+ {[%clk 0:00:17]}  Kd7 {[%clk 0:00:05]} 55. Qxh6 {[%clk 0:00:17]}  Kc8 {[%clk 0:00:04]} 56. Qg7 {[%clk 0:00:18]}  Qe2 {[%clk 0:00:03]} 57. Qg8+ {[%clk 0:00:18]}  Kb7 {[%clk 0:00:04]} 58. Qb3+ {[%clk 0:00:19]}  Kc6 {[%clk 0:00:03]} 59. Rf6+ {[%clk 0:00:19]}  Kd7 {[%clk 0:00:03]} 60. Rf7+ {[%clk 0:00:19]}  Ke8 {[%clk 0:00:03]} 61. Rg7 {[%clk 0:00:18]}  Qe5 {[%clk 0:00:02]} 62. Qf7+ {[%clk 0:00:18]}  Kd8 {[%clk 0:00:02]} 63. Qd7# {[%clk 0:00:19]} 1-0


[Site "https://www.chess.com"]

[Event "Titled Tuesday Blitz October 25 Late 2022"]
[White "Ezat, Mohamed"]
[Black "Roman, Rodrigo"]
[WhiteFideId "10600906"]
[BlackFideId "3701220"]
[WhiteElo "2386"]
[BlackElo "2001"]
[Result "0-1"]
[Round "05"]
[TimeControl "180+1"]
[Date "2022.10.26"]
[WhiteClock "0:01:13"]
[BlackClock "0:01:32"]

1. c4 {[%clk 0:03:00]}  c5 {[%clk 0:02:56]} 2. Nc3 {[%clk 0:03:00]}  Nc6 {[%clk 0:02:56]} 3. e3 {[%clk 0:03:00]}  Nf6 {[%clk 0:02:55]} 4. d4 {[%clk 0:03:00]}  cxd4 {[%clk 0:02:56]} 5. exd4 {[%clk 0:02:59]}  d5 {[%clk 0:02:57]} 6. Nf3 {[%clk 0:02:59]}  Bg4 {[%clk 0:02:56]} 7. Be2 {[%clk 0:02:55]}  e6 {[%clk 0:02:54]} 8. O-O {[%clk 0:02:53]}  dxc4 {[%clk 0:02:54]} 9. Bxc4 {[%clk 0:02:51]}  Be7 {[%clk 0:02:45]} 10. d5 {[%clk 0:02:50]}  exd5 {[%clk 0:02:41]} 11. Nxd5 {[%clk 0:02:49]}  O-O {[%clk 0:02:37]} 12. Nxe7+ {[%clk 0:02:36]}  Qxe7 {[%clk 0:02:36]} 13. h3 {[%clk 0:02:21]}  Rfd8 {[%clk 0:02:30]} 14. Qb3 {[%clk 0:02:10]}  Na5 {[%clk 0:02:27]} 15. Bxf7+ {[%clk 0:02:10]}  Qxf7 {[%clk 0:02:25]} 16. Qxf7+ {[%clk 0:02:10]}  Kxf7 {[%clk 0:02:23]} 17. Ne5+ {[%clk 0:02:10]}  Ke6 {[%clk 0:02:23]} 18. Nxg4 {[%clk 0:02:09]}  Nxg4 {[%clk 0:02:23]} 19. hxg4 {[%clk 0:02:10]}  Rd4 {[%clk 0:02:15]} 20. Re1+ {[%clk 0:02:08]}  Kf7 {[%clk 0:02:15]} 21. f3 {[%clk 0:02:07]}  Rd3 {[%clk 0:02:03]} 22. b3 {[%clk 0:02:05]}  Rad8 {[%clk 0:02:02]} 23. Be3 {[%clk 0:02:01]}  b6 {[%clk 0:02:00]} 24. Rac1 {[%clk 0:02:01]}  R8d7 {[%clk 0:02:00]} 25. Bf4 {[%clk 0:01:57]}  R3d4 {[%clk 0:01:55]} 26. Be3 {[%clk 0:01:40]}  Rd3 {[%clk 0:01:55]} 27. Kf2 {[%clk 0:01:36]}  Nb7 {[%clk 0:01:54]} 28. Ke2 {[%clk 0:01:29]}  R3d5 {[%clk 0:01:40]} 29. Red1 {[%clk 0:01:26]}  Rxd1 {[%clk 0:01:38]} 30. Rxd1 {[%clk 0:01:25]}  Re7 {[%clk 0:01:39]} 31. Kf2 {[%clk 0:01:24]}  Rc7 {[%clk 0:01:36]} 32. Bf4 {[%clk 0:01:23]}  Re7 {[%clk 0:01:32]} 33. Rc1 {[%clk 0:01:20]}  Nc5 {[%clk 0:01:32]} 34. Bd6 {[%clk 0:01:18]}  Nd3+ {[%clk 0:01:31]} 35. Kf1 {[%clk 0:01:18]}  Nxc1 {[%clk 0:01:32]} 36. Bxe7 {[%clk 0:01:18]}  Kxe7 {[%clk 0:01:32]} 37. Ke1 {[%clk 0:01:14]}  Nxa2 {[%clk 0:01:32]} 38. Kd2 {[%clk 0:01:15]}  Nb4 {[%clk 0:01:32]} 39. Kc3 {[%clk 0:01:15]}  Nc6 {[%clk 0:01:33]} 40. Kc4 {[%clk 0:01:15]}  Kd6 {[%clk 0:01:34]} 41. f4 {[%clk 0:01:15]}  a6 {[%clk 0:01:34]} 42. g5 {[%clk 0:01:14]}  b5+ {[%clk 0:01:35]} 43. Kd3 {[%clk 0:01:14]}  g6 {[%clk 0:01:34]} 44. g4 {[%clk 0:01:14]}  Kd5 {[%clk 0:01:34]} 45. Ke3 {[%clk 0:01:14]}  Ne7 {[%clk 0:01:33]} 46. Kd3 {[%clk 0:01:13]}  a5 {[%clk 0:01:33]} 47. Kc3 {[%clk 0:01:13]}  b4+ {[%clk 0:01:33]} 48. Kd3 {[%clk 0:01:13]}  Nc6 {[%clk 0:01:33]} 49. Ke3 {[%clk 0:01:11]}  Nd4 {[%clk 0:01:32]} 50. f5 {[%clk 0:01:11]}  gxf5 {[%clk 0:01:32]} 51. gxf5 {[%clk 0:01:12]}  Nxf5+ {[%clk 0:01:32]} 52. Kf4 {[%clk 0:01:13]}  Nd4 {[%clk 0:01:32]} 53. Kg4 {[%clk 0:01:13]}  Ke6 {[%clk 0:01:32]} 54. Kh5 {[%clk 0:01:14]}  Kf5 {[%clk 0:01:31]} 55. Kh6 {[%clk 0:01:14]}  Nxb3 {[%clk 0:01:32]} 56. Kh5 {[%clk 0:01:12]}  a4 {[%clk 0:01:32]} 57. Kh6 {[%clk 0:01:12]}  a3 {[%clk 0:01:32]} 58. Kxh7 {[%clk 0:01:13]}  Kxg5 {[%clk 0:01:32]} 0-1


[Site "https://www.chess.com"]

[Event "Titled Tuesday Blitz October 25 Late 2022"]
[White "Fernandez Siles, Luis"]
[Black "Koutlas, Nikolaos"]
[WhiteFideId "2209420"]
[BlackFideId "25827138"]
[WhiteElo "2186"]
[BlackElo "2167"]
[Result "1/2-1/2"]
[Round "05"]
[TimeControl "180+1"]
[Date "2022.10.26"]
[WhiteClock "0:01:25"]
[BlackClock "0:01:42"]

1. e4 {[%clk 0:02:57]}  e6 {[%clk 0:02:55]} 2. d4 {[%clk 0:02:56]}  d5 {[%clk 0:02:51]} 3. Nd2 {[%clk 0:02:56]}  c5 {[%clk 0:02:51]} 4. c3 {[%clk 0:02:56]}  cxd4 {[%clk 0:02:49]} 5. cxd4 {[%clk 0:02:56]}  Nc6 {[%clk 0:02:50]} 6. Ngf3 {[%clk 0:02:55]}  dxe4 {[%clk 0:02:50]} 7. Nxe4 {[%clk 0:02:55]}  Nf6 {[%clk 0:02:50]} 8. Nc3 {[%clk 0:02:55]}  Be7 {[%clk 0:02:46]} 9. Bd3 {[%clk 0:02:55]}  O-O {[%clk 0:02:45]} 10. O-O {[%clk 0:02:55]}  b6 {[%clk 0:02:45]} 11. Re1 {[%clk 0:02:48]}  Bb7 {[%clk 0:02:45]} 12. a3 {[%clk 0:02:49]}  Rc8 {[%clk 0:02:43]} 13. Bc2 {[%clk 0:02:48]}  Na5 {[%clk 0:02:36]} 14. Ne5 {[%clk 0:02:45]}  Nc4 {[%clk 0:02:32]} 15. Bg5 {[%clk 0:02:05]}  Nxb2 {[%clk 0:02:13]} 16. Qd2 {[%clk 0:02:03]}  h6 {[%clk 0:01:47]} 17. Bxh6 {[%clk 0:01:46]}  gxh6 {[%clk 0:01:44]} 18. Qxh6 {[%clk 0:01:46]}  Rxc3 {[%clk 0:01:44]} 19. Qg5+ {[%clk 0:01:34]}  Kh8 {[%clk 0:01:42]} 20. Qh6+ {[%clk 0:01:25]}  Kg8 {[%clk 0:01:41]} 21. Qg5+ {[%clk 0:01:25]}  Kh8 {[%clk 0:01:41]} 22. Qh6+ {[%clk 0:01:25]}  Kg8 {[%clk 0:01:42]} 1/2-1/2


[Site "https://www.chess.com"]